fUST/lending_fUST_20250107
["ID","MTS","AMOUNT","RATE_DAILY","PERIOD"]
[347917989,1736199057442,-500.0,0.0002,3]
[347917990,1736199057451,-151.0,0.0002,2]
[347917991,1736199057461,-500.0,0.0002,3]
[347917992,1736199057470,-151.0,0.0002,2]
[347917993,1736199057479,-836.91,0.0002,3]
[347917994,1736199057495,-726.75,0.0002,3]
[347917995,1736199057504,-500.0,0.0002,3]
[347917996,1736199057513,-2694.42,0.0002,3]
[347917997,1736199057522,-500.0,0.0002,3]
[347917998,1736199057532,-900.08,0.0002,3]
[347917999,1736199057541,-5130.58,0.0002,3]
[347918000,1736199057550,-500.0,0.0002,3]
[347918001,1736199057559,-3154.74,0.0002,3]
[347918002,1736199057568,-500.0,0.0002,3]
[347918003,1736199057577,-500.0,0.0002,3]
[347918004,1736199057586,-500.0,0.0002,3]
[347918005,1736199057595,-500.0,0.0002,3]
[347918006,1736199057604,-500.0,0.0002,3]
[347918007,1736199057613,-155.493749,0.00020027,2]
[347918008,1736199057622,-2759.48835071,0.00020038,2]
[347918009,1736199057632,-2318.0,0.00020059,2]
[347918010,1736199057641,-150.0,0.00020059,2]
[347918011,1736199057650,-503.386324,0.0002007,2]
[347918012,1736199057659,-171.29778151,0.00020099,2]
[347918013,1736199057668,-11438.28775022,0.000201,2]
[347918014,1736199057677,-194986.55270731,0.000201,2]
[347918015,1736199057686,-263280.75697274,0.000201,5]
[347918018,1736199584964,167.091659,0.00013973,2]
[347918021,1736199850287,10001.0,0.00015,7]
[347918025,1736200032548,1009.0,0.00025,120]
[347918026,1736200043139,-265.80723891,0.00018175,2]
[347918027,1736200043161,-300.0,0.00018359,2]
[347918028,1736200043183,-19310.776589,0.0001836,2]
[347918092,1736200233026,-164.666054,0.00018346,2]
[347918093,1736200233035,-323.56618631,0.0001836,2]
[347918104,1736200238653,-5265.65722469,0.0001836,2]
[347918105,1736200238664,-184.63180951,0.00019078,2]
[347918106,1736200238673,-151.17146547,0.00019166,2]
[347918107,1736200238683,-196.749,0.00019177,2]
[347918108,1736200238692,-500.0,0.00019177,2]
[347918109,1736200238702,-300.0,0.00019177,2]
[347918110,1736200238710,-161.79050033,0.00019178,2]
[347918111,1736200238722,-338.20949967,0.00019178,2]
[347918112,1736200238731,-500.0,0.00019178,2]
[347918113,1736200238741,-500.0,0.00019178,2]
[347918114,1736200238750,-500.0,0.00019178,2]
[347918115,1736200238759,-500.0,0.00019178,2]
[347918116,1736200238768,-500.0,0.00019178,2]
[347918117,1736200238778,-500.0,0.00019178,2]
[347918118,1736200238787,-500.0,0.00019178,2]
[347918119,1736200238796,-539.98836022,0.00019178,2]
[347918120,1736200238805,-500.0,0.00019178,2]
[347918121,1736200238815,-246.94867289,0.00019178,2]
[347918122,1736200238824,-500.0,0.00019178,2]
[347918123,1736200238833,-500.0,0.00019178,2]
[347918124,1736200238842,-500.0,0.00019178,2]
[347918125,1736200238851,-500.0,0.00019178,2]
[347918126,1736200238860,-500.0,0.00019178,2]
[347918127,1736200238870,-500.0,0.00019178,2]
[347918128,1736200238879,-507.7482609,0.00019178,2]
[347918129,1736200238888,-548.01,0.00019178,2]
[347918130,1736200238898,-500.0,0.00019178,2]
[347918131,1736200238907,-500.0,0.00019178,2]
[347918132,1736200238916,-570.55,0.00019178,2]
[347918133,1736200238926,-500.0,0.00019178,2]
[347918134,1736200238935,-500.0,0.00019178,2]
[347918135,1736200238944,-502.37044487,0.00019178,2]
[347918136,1736200238954,-832.01,0.00019178,2]
[347918137,1736200238963,-500.0,0.00019178,2]
[347918138,1736200238972,-500.0,0.00019178,2]
[347918139,1736200238981,-752.42,0.00019178,2]
[347918140,1736200238992,-500.0,0.00019178,2]
[347918141,1736200239001,-500.0,0.00019178,2]
[347918142,1736200239010,-500.0,0.00019178,2]
[347918143,1736200239019,-803.53,0.00019178,2]
[347918144,1736200239028,-500.0,0.00019178,2]
[347918145,1736200239037,-500.0,0.00019178,2]
[347918146,1736200239046,-500.0,0.00019178,2]
[347918147,1736200239056,-500.0,0.00019178,2]
[347918148,1736200239065,-558.90431487,0.00019178,2]
[347918149,1736200239075,-500.0,0.00019178,2]
[347918150,1736200239084,-521.17,0.00019178,2]
[347918151,1736200239093,-4955.31,0.00019178,2]
[347918152,1736200239103,-500.0,0.00019178,2]
[347918153,1736200239112,-500.0,0.00019178,2]
[347918154,1736200239121,-500.0,0.00019178,2]
[347918155,1736200239131,-500.0,0.00019178,2]
[347918156,1736200239140,-565.95,0.00019178,2]
[347918157,1736200239149,-500.0,0.00019178,2]
[347918158,1736200239159,-500.0,0.00019178,2]
[347918159,1736200239169,-699.61,0.00019178,2]
[347918160,1736200239179,-500.0,0.00019178,2]
[347918161,1736200239188,-500.0,0.00019178,2]
[347918162,1736200239197,-500.0,0.00019178,2]
[347918163,1736200239206,-500.0,0.00019178,2]
[347918164,1736200239216,-500.0,0.00019178,2]
[347918165,1736200239225,-500.0,0.00019178,2]
[347918166,1736200239235,-500.0,0.00019178,2]
[347918167,1736200239244,-500.0,0.00019178,2]
[347918168,1736200239254,-500.0,0.00019178,2]
[347918169,1736200239263,-500.0,0.00019178,2]
[347918170,1736200239272,-500.0,0.00019178,2]
[347918171,1736200239282,-500.0,0.00019178,2]
[347918172,1736200239291,-500.0,0.00019178,2]
[347918173,1736200239300,-500.0,0.00019178,2]
[347918174,1736200239309,-500.0,0.00019178,2]
[347918175,1736200239318,-500.0,0.00019178,2]
[347918176,1736200239328,-500.0,0.00019178,2]
[347918177,1736200239338,-500.0,0.00019178,2]
[347918178,1736200239348,-500.0,0.00019178,2]
[347918179,1736200239358,-500.0,0.00019178,2]
[347918180,1736200239367,-1005.05,0.00019178,2]
[347918181,1736200239377,-500.0,0.00019178,2]
[347918182,1736200239387,-317.21521902,0.00019178,2]
[347918183,1736200239396,-488.99343534,0.00019178,2]
[347918184,1736200239405,-3360.33,0.00019178,2]
[347918185,1736200239414,-690.45,0.00019178,2]
[347918186,1736200239424,-500.0,0.00019178,2]
[347918187,1736200239433,-500.0,0.00019178,2]
[347918188,1736200239443,-696.39,0.00019178,2]
[347918189,1736200239452,-500.0,0.00019178,2]
[347918190,1736200239461,-500.0,0.00019178,2]
[347918191,1736200239471,-500.0,0.00019178,2]
[347918192,1736200239481,-165.43092143,0.00019178,2]
[347918193,1736200239491,-500.0,0.00019178,2]
[347918194,1736200239500,-578.24,0.00019178,2]
[347918195,1736200239509,-538.77921735,0.00019178,2]
[347918196,1736200239519,-500.0,0.00019178,2]
[347918197,1736200239528,-500.0,0.00019178,2]
[347918198,1736200239539,-500.0,0.00019178,2]
[347918199,1736200239548,-500.0,0.00019178,2]
[347918200,1736200239557,-1805.03,0.00019178,2]
[347918201,1736200239566,-1118.68,0.00019178,2]
[347918202,1736200239576,-500.0,0.00019178,2]
[347918203,1736200239586,-500.0,0.00019178,2]
[347918204,1736200239596,-859.81,0.00019178,2]
[347918205,1736200239606,-972.38,0.00019178,2]
[347918206,1736200239616,-500.0,0.00019178,2]
[347918207,1736200239626,-500.0,0.00019178,2]
[347918208,1736200239635,-500.0,0.00019178,2]
[347918209,1736200239645,-500.0,0.00019178,2]
[347918210,1736200239655,-500.0,0.00019178,2]
[347918211,1736200239664,-500.0,0.00019178,2]
[347918212,1736200239673,-1509.38,0.00019178,2]
[347918213,1736200239683,-500.0,0.00019178,2]
[347918214,1736200239692,-500.0,0.00019178,2]
[347918215,1736200239702,-500.0,0.00019178,2]
[347918216,1736200239711,-500.0,0.00019178,2]
[347918217,1736200239721,-22095.71,0.00019178,2]
[347918218,1736200239731,-2254.41,0.00019178,2]
[347918219,1736200239740,-500.0,0.00019178,2]
[347918220,1736200239750,-1839.92,0.00019178,2]
[347918221,1736200239759,-500.0,0.00019178,2]
[347918222,1736200239769,-500.0,0.00019178,2]
[347918223,1736200239778,-672.09,0.00019178,2]
[347918224,1736200239788,-500.0,0.00019178,2]
[347918225,1736200239798,-500.0,0.00019178,2]
[347918226,1736200239808,-507.49,0.00019178,2]
[347918227,1736200239818,-462.78374545,0.00019178,2]
[347918228,1736200239828,-500.0,0.00019178,2]
[347918229,1736200239837,-808.94,0.00019178,2]
[347918230,1736200239847,-1034.0,0.00019178,2]
[347918231,1736200239856,-808.94,0.00019178,2]
[347918232,1736200239865,-808.94,0.00019178,2]
[347918233,1736200239875,-505.43,0.00019178,2]
[347918234,1736200239885,-808.94,0.00019178,2]
[347918235,1736200239894,-500.0,0.00019178,2]
[347918236,1736200239904,-808.94,0.00019178,2]
[347918237,1736200239914,-500.0,0.00019178,2]
[347918238,1736200239923,-808.94,0.00019178,2]
[347918239,1736200239933,-500.0,0.00019178,2]
[347918240,1736200239942,-500.0,0.00019178,2]
[347918241,1736200239951,-808.94,0.00019178,2]
[347918242,1736200239961,-808.94,0.00019178,2]
[347918243,1736200239970,-500.0,0.00019178,2]
[347918244,1736200239989,-2381.15,0.00019178,2]
[347918245,1736200240003,-500.0,0.00019178,2]
[347918246,1736200240014,-299.68271934,0.00019178,2]
[347918247,1736200240023,-762.44,0.00019178,2]
[347918248,1736200240034,-994.71,0.00019178,2]
[347918249,1736200240043,-255.53516676,0.00019178,2]
[347918250,1736200240053,-500.0,0.00019178,2]
[347918251,1736200240063,-500.0,0.00019178,2]
[347918252,1736200240073,-1000.0,0.00019178,7]
[347918253,1736200240082,-500.0,0.00019178,2]
[347918254,1736200240092,-1003.17,0.00019178,2]
[347918255,1736200240101,-500.0,0.00019178,2]
[347918256,1736200240113,-965.77,0.00019178,2]
[347918257,1736200240123,-500.0,0.00019178,2]
[347918258,1736200240132,-500.0,0.00019178,2]
[347918259,1736200240142,-500.0,0.00019178,2]
[347918260,1736200240152,-974.5,0.00019178,2]
[347918261,1736200240161,-500.0,0.00019178,2]
[347918262,1736200240342,-500.0,0.00019178,2]
[347918263,1736200240353,-500.0,0.00019178,2]
[347918264,1736200240363,-500.0,0.00019178,2]
[347918265,1736200240373,-500.0,0.00019178,2]
[347918267,1736200240383,-246.97,0.00019178,2]
[347918268,1736200240392,-500.0,0.00019178,2]
[347918269,1736200240402,-500.0,0.00019178,2]
[347918270,1736200240412,-500.7721997,0.00019178,2]
[347918271,1736200240422,-784.46,0.00019178,2]
[347918272,1736200240431,-500.0,0.00019178,2]
[347918273,1736200240441,-3368.36,0.00019178,2]
[347918274,1736200240451,-500.0,0.00019178,2]
[347918275,1736200240461,-500.0,0.00019178,2]
[347918276,1736200240471,-963.17,0.00019178,2]
[347918277,1736200240480,-500.0,0.00019178,2]
[347918278,1736200240490,-500.0,0.00019178,2]
[347918279,1736200240500,-500.0,0.00019178,2]
[347918280,1736200240510,-1029.74,0.00019178,2]
[347918281,1736200240519,-500.0,0.00019178,2]
[347918283,1736200240528,-3138.87,0.00019178,2]
[347918284,1736200240538,-500.0,0.00019178,2]
[347918285,1736200240547,-500.0,0.00019178,2]
[347918286,1736200240557,-500.0,0.00019178,2]
[347918287,1736200240566,-500.0,0.00019178,2]
[347918288,1736200240576,-167.454294,0.00019178,2]
[347918289,1736200240587,-153.49,0.00019178,2]
[347918290,1736200240596,-546.769,0.0001926,2]
[347918291,1736200240605,-500.0000009,0.0001926,2]
[347918292,1736200240614,-500.0,0.0001945,2]
[347918293,1736200240624,-344.99007347,0.00019451,2]
[347918294,1736200240633,-808.94,0.00019451,3]
[347918295,1736200240642,-808.94,0.00019451,3]
[347918296,1736200240651,-808.94,0.00019451,3]
[347918297,1736200240660,-808.94,0.00019451,3]
[347918298,1736200240669,-808.94,0.00019451,3]
[347918299,1736200240679,-808.94,0.00019451,3]
[347918300,1736200240688,-500.0,0.00019452,3]
[347918301,1736200240698,-500.0,0.00019452,3]
[347918302,1736200240709,-500.0,0.00019452,3]
[347918303,1736200240719,-500.0,0.00019452,3]
[347918305,1736200240732,-500.0,0.00019452,3]
[347918307,1736200240755,-500.0,0.00019452,3]
[347918308,1736200240767,-596.03546013,0.00019452,3]
[347918309,1736200240776,-500.0,0.00019452,3]
[347918310,1736200240794,-557.12807984,0.00019452,3]
[347918312,1736200240803,-500.0,0.00019452,3]
[347918313,1736200240817,-500.0,0.00019452,3]
[347918314,1736200240840,-500.0,0.00019452,3]
[347918315,1736200240857,-548.01,0.00019452,3]
[347918316,1736200240873,-570.55,0.00019452,3]
[347918317,1736200240883,-500.0,0.00019452,3]
[347918318,1736200240892,-500.0,0.00019452,3]
[347918319,1736200240902,-500.0,0.00019452,3]
[347918320,1736200240912,-832.01,0.00019452,3]
[347918321,1736200240922,-500.0,0.00019452,3]
[347918322,1736200240931,-500.0,0.00019452,3]
[347918323,1736200240940,-752.42,0.00019452,3]
[347918324,1736200240949,-500.0,0.00019452,3]
[347918325,1736200240958,-500.0,0.00019452,3]
[347918326,1736200240968,-803.53,0.00019452,3]
[347918327,1736200240978,-500.0,0.00019452,3]
[347918328,1736200240989,-420.2,0.00019452,2]
[347918329,1736200240999,-500.0,0.00019452,3]
[347918330,1736200241008,-500.0,0.00019452,3]
[347918331,1736200241019,-500.0,0.00019452,3]
[347918332,1736200241028,-521.17,0.00019452,3]
[347918333,1736200241037,-4955.31,0.00019452,3]
[347918334,1736200241046,-500.0,0.00019452,3]
[347918335,1736200241056,-515.42,0.00019452,3]
[347918336,1736200241065,-500.0,0.00019452,3]
[347918337,1736200241074,-500.0,0.00019452,3]
[347918338,1736200241083,-565.95,0.00019452,3]
[347918339,1736200241093,-500.0,0.00019452,3]
[347918340,1736200241102,-500.0,0.00019452,3]
[347918341,1736200241110,-699.61,0.00019452,3]
[347918342,1736200241120,-500.0,0.00019452,3]
[347918343,1736200241130,-500.0,0.00019452,3]
[347918344,1736200241140,-500.0,0.00019452,3]
[347918345,1736200241150,-500.0,0.00019452,3]
[347918346,1736200241160,-500.0,0.00019452,3]
[347918347,1736200241170,-500.0,0.00019452,3]
[347918348,1736200241181,-500.0,0.00019452,3]
[347918349,1736200241191,-500.0,0.00019452,3]
[347918350,1736200241200,-500.0,0.00019452,3]
[347918351,1736200241210,-500.0,0.00019452,3]
[347918352,1736200241219,-500.0,0.00019452,3]
[347918353,1736200241229,-500.0,0.00019452,3]
[347918354,1736200241240,-1005.05,0.00019452,2]
[347918355,1736200241250,-3360.33,0.00019452,3]
[347918356,1736200241260,-690.45,0.00019452,3]
[347918357,1736200241270,-500.0,0.00019452,3]
[347918358,1736200241280,-696.39,0.00019452,3]
[347918359,1736200241290,-500.0,0.00019452,3]
[347918360,1736200241300,-500.0,0.00019452,3]
[347918361,1736200241310,-500.0,0.00019452,3]
[347918362,1736200241320,-500.0,0.00019452,3]
[347918363,1736200241330,-578.24,0.00019452,3]
[347918364,1736200241339,-500.0,0.00019452,3]
[347918365,1736200241349,-500.0,0.00019452,3]
[347918366,1736200241360,-500.0,0.00019452,3]
[347918367,1736200241370,-500.0,0.00019452,3]
[347918368,1736200241379,-1805.03,0.00019452,3]
[347918369,1736200241390,-1118.68,0.00019452,3]
[347918370,1736200241404,-500.0,0.00019452,3]
[347918371,1736200241421,-859.81,0.00019452,3]
[347918372,1736200241438,-972.38,0.00019452,3]
[347918373,1736200241448,-500.0,0.00019452,3]
[347918374,1736200241458,-500.0,0.00019452,3]
[347918375,1736200241468,-500.0,0.00019452,3]
[347918376,1736200241479,-500.0,0.00019452,3]
[347918377,1736200241491,-500.0,0.00019452,3]
[347918378,1736200241500,-500.0,0.00019452,3]
[347918379,1736200241510,-1509.38,0.00019452,3]
[347918380,1736200241520,-500.0,0.00019452,3]
[347918381,1736200241534,-500.0,0.00019452,3]
[347918382,1736200241547,-500.0,0.00019452,3]
[347918383,1736200241562,-22095.71,0.00019452,3]
[347918384,1736200241573,-2254.41,0.00019452,3]
[347918385,1736200241583,-500.0,0.00019452,3]
[347918386,1736200241592,-1839.92,0.00019452,3]
[347918387,1736200241602,-500.0,0.00019452,3]
[347918388,1736200241612,-541.96812492,0.00019452,3]
[347918389,1736200241621,-672.09,0.00019452,3]
[347918390,1736200241631,-500.0,0.00019452,3]
[347918391,1736200241640,-500.0,0.00019452,3]
[347918392,1736200241650,-507.49,0.00019452,3]
[347918393,1736200241660,-500.0,0.00019452,3]
[347918394,1736200241671,-1034.0,0.00019452,3]
[347918395,1736200241681,-505.43,0.00019452,3]
[347918396,1736200241691,-2381.15,0.00019452,3]
[347918397,1736200241701,-762.44,0.00019452,3]
[347918398,1736200241711,-994.71,0.00019452,3]
[347918399,1736200241721,-500.0,0.00019452,3]
[347918400,1736200241730,-500.0,0.00019452,3]
[347918401,1736200241740,-1120.45,0.00019452,7]
[347918402,1736200241750,-500.0,0.00019452,3]
[347918403,1736200241764,-1003.17,0.00019452,3]
[347918404,1736200241779,-500.0,0.00019452,3]
[347918405,1736200241789,-965.77,0.00019452,3]
[347918406,1736200241798,-500.0,0.00019452,3]
[347918407,1736200241807,-500.0,0.00019452,3]
[347918408,1736200241818,-500.0,0.00019452,3]
[347918409,1736200241828,-974.5,0.00019452,3]
[347918410,1736200241837,-500.0,0.00019452,3]
[347918411,1736200241848,-500.0,0.00019452,3]
[347918412,1736200241858,-500.0,0.00019452,3]
[347918413,1736200241868,-500.0,0.00019452,3]
[347918414,1736200241878,-500.0,0.00019452,3]
[347918415,1736200241890,-500.0,0.00019452,3]
[347918416,1736200241900,-784.46,0.00019452,3]
[347918417,1736200241916,-500.0,0.00019452,3]
[347918418,1736200241932,-3368.36,0.00019452,3]
[347918419,1736200241941,-626.11,0.00019452,3]
[347918420,1736200241951,-963.17,0.00019452,3]
[347918421,1736200241960,-346.27,0.00019452,3]
[347918422,1736200241970,-500.0,0.00019452,3]
[347918423,1736200241983,-500.0,0.00019452,3]
[347918424,1736200241994,-1029.74,0.00019452,3]
[347918425,1736200242003,-500.0,0.00019452,3]
[347918426,1736200242013,-3138.87,0.00019452,3]
[347918427,1736200242023,-419.69,0.00019452,3]
[347918428,1736200242033,-500.0,0.00019452,3]
[347918429,1736200242043,-500.0,0.00019452,3]
[347918430,1736200242054,-500.0,0.00019452,3]
[347918431,1736200242063,-500.0,0.00019473,2]
[347918432,1736200242073,-500.0,0.00019473,2]
[347918433,1736200242082,-184.63180949,0.00019641,2]
[347918434,1736200242092,-808.94,0.00019725,3]
[347918435,1736200242101,-40.78579249,0.00019725,3]
[347918436,1736200242118,-768.15420751,0.00019725,3]
[347918437,1736200242128,-808.94,0.00019725,3]
[347918438,1736200242137,-808.94,0.00019725,3]
[347918439,1736200242147,-808.94,0.00019725,3]
[347918440,1736200242157,-640.55462002,0.00019726,3]
[347918441,1736200242168,-500.0,0.00019726,3]
[347918442,1736200242178,-221.60127497,0.00019726,3]
[347918443,1736200242195,-35.35872503,0.00019726,3]
[347918444,1736200242205,-500.0,0.00019726,3]
[347918445,1736200242215,-500.0,0.00019726,5]
[347918446,1736200242224,-505.03023111,0.00019726,3]
[347918447,1736200242233,-500.0,0.00019726,3]
[347918448,1736200242244,-500.0,0.00019726,3]
[347918449,1736200242254,-500.0,0.00019726,3]
[347918450,1736200242264,-548.01,0.00019726,3]
[347918451,1736200242273,-570.55,0.00019726,3]
[347918452,1736200242283,-500.0,0.00019726,3]
[347918453,1736200242292,-500.0,0.00019726,3]
[347918454,1736200242302,-832.01,0.00019726,3]
[347918455,1736200242311,-500.0,0.00019726,3]
[347918456,1736200242321,-500.0,0.00019726,3]
[347918457,1736200242331,-752.42,0.00019726,3]
[347918458,1736200242341,-500.0,0.00019726,3]
[347918459,1736200242350,-500.0,0.00019726,3]
[347918460,1736200242359,-297.8831052,0.00019726,3]
[347918461,1736200242455,-502.89526421,0.00019178,2]
[347918469,1736200243651,-449.86473579,0.00019178,2]
[347918470,1736200243662,-698.58179101,0.00019178,2]
[347918471,1736200243710,-614.53323848,0.00019178,2]
[347918483,1736200246710,-1767.18497051,0.00019178,2]
[347918484,1736200246719,-500.0,0.00019178,2]
[347918485,1736200246729,-952.76,0.00019452,3]
[347918486,1736200246738,-3080.3,0.00019452,3]
[347918487,1736200246748,-505.6468948,0.00019726,3]
[347918488,1736200246757,-500.0,0.00019726,3]
[347918489,1736200246767,-500.0,0.00019726,3]
[347918490,1736200246776,-154.10105987,0.00019726,3]
[347918491,1736200246785,-500.0,0.00019726,3]
[347918492,1736200246794,-521.17,0.00019726,3]
[347918493,1736200246803,-4955.31,0.00019726,3]
[347918494,1736200246813,-547.83,0.00019726,3]
[347918495,1736200246823,-500.0,0.00019726,3]
[347918496,1736200246832,-500.0,0.00019726,3]
[347918497,1736200246842,-565.95,0.00019726,3]
[347918498,1736200246851,-500.0,0.00019726,3]
[347918499,1736200246860,-699.61,0.00019726,3]
[347918500,1736200246869,-500.0,0.00019726,3]
[347918501,1736200246879,-500.0,0.00019726,3]
[347918502,1736200246888,-500.0,0.00019726,3]
[347918503,1736200246898,-348.58619682,0.00019726,3]
[347918504,1736200246907,-500.0,0.00019726,3]
[347918505,1736200246918,-500.0,0.00019726,3]
[347918506,1736200246927,-500.0,0.00019726,3]
[347918507,1736200246937,-500.0,0.00019726,3]
[347918508,1736200246946,-500.0,0.00019726,3]
[347918509,1736200246955,-500.0,0.00019726,3]
[347918510,1736200246965,-1005.05,0.00019726,2]
[347918511,1736200246975,-690.45,0.00019726,3]
[347918512,1736200246988,-500.0,0.00019726,3]
[347918513,1736200246998,-696.39,0.00019726,3]
[347918514,1736200247007,-508.31435351,0.00019726,3]
[347918515,1736200247018,-500.0,0.00019726,3]
[347918516,1736200247028,-500.0,0.00019726,3]
[347918517,1736200247038,-500.0,0.00019726,3]
[347918518,1736200247048,-578.24,0.00019726,3]
[347918519,1736200247058,-500.0,0.00019726,3]
[347918520,1736200247067,-500.0,0.00019726,3]
[347918521,1736200247077,-500.0,0.00019726,3]
[347918522,1736200247086,-500.0,0.00019726,3]
[347918523,1736200247096,-1805.03,0.00019726,3]
[347918524,1736200247105,-1118.68,0.00019726,3]
[347918525,1736200247114,-859.81,0.00019726,3]
[347918526,1736200247123,-972.38,0.00019726,3]
[347918527,1736200247133,-500.0,0.00019726,3]
[347918528,1736200247142,-500.0,0.00019726,3]
[347918529,1736200247152,-500.0,0.00019726,3]
[347918530,1736200247161,-500.0,0.00019726,3]
[347918531,1736200247171,-505.6082234,0.00019726,3]
[347918532,1736200247181,-500.0,0.00019726,3]
[347918533,1736200247190,-1509.38,0.00019726,3]
[347918534,1736200247200,-504.69611081,0.00019726,3]
[347918535,1736200247210,-500.0,0.00019726,3]
[347918536,1736200247219,-500.0,0.00019726,3]
[347918537,1736200247229,-22095.71,0.00019726,3]
[347918538,1736200247238,-500.0,0.00019726,3]
[347918539,1736200247250,-2254.41,0.00019726,3]
[347918540,1736200247259,-1839.92,0.00019726,3]
[347918541,1736200247270,-500.0,0.00019726,3]
[347918542,1736200247280,-672.09,0.00019726,3]
[347918543,1736200247289,-500.0,0.00019726,3]
[347918544,1736200247299,-507.49,0.00019726,3]
[347918545,1736200247308,-500.0,0.00019726,3]
[347918546,1736200247318,-1034.0,0.00019726,3]
[347918547,1736200247328,-505.43,0.00019726,3]
[347918548,1736200247337,-2381.15,0.00019726,3]
[347918549,1736200247347,-762.44,0.00019726,3]
[347918550,1736200247357,-994.71,0.00019726,3]
[347918551,1736200247366,-500.0,0.00019726,3]
[347918552,1736200247376,-500.0,0.00019726,3]
[347918553,1736200247385,-500.0,0.00019726,3]
[347918554,1736200247395,-1003.17,0.00019726,3]
[347918555,1736200247405,-500.0,0.00019726,3]
[347918556,1736200247414,-965.77,0.00019726,3]
[347918557,1736200247423,-500.0,0.00019726,3]
[347918558,1736200247435,-500.0,0.00019726,3]
[347918559,1736200247444,-974.5,0.00019726,3]
[347918560,1736200247454,-500.0,0.00019726,3]
[347918561,1736200247463,-500.0,0.00019726,3]
[347918562,1736200247472,-500.0,0.00019726,3]
[347918563,1736200247481,-500.0,0.00019726,3]
[347918564,1736200247491,-500.0,0.00019726,3]
[347918565,1736200247500,-500.0,0.00019726,3]
[347918566,1736200247510,-784.46,0.00019726,3]
[347918567,1736200247519,-500.0,0.00019726,3]
[347918568,1736200247528,-3368.36,0.00019726,3]
[347918569,1736200247538,-963.17,0.00019726,3]
[347918570,1736200247548,-500.0,0.00019726,3]
[347918571,1736200247557,-500.0,0.00019726,3]
[347918572,1736200247567,-1029.74,0.00019726,3]
[347918573,1736200247577,-272.2771766,0.00019726,3]
[347918574,1736200247587,-3138.87,0.00019726,3]
[347918575,1736200247597,-500.0,0.00019726,3]
[347918576,1736200247607,-500.0,0.00019726,3]
[347918577,1736200247617,-500.0,0.00019726,3]
[347918578,1736200247627,-952.76,0.00019726,3]
[347918579,1736200247637,-3080.3,0.00019726,3]
[347918580,1736200247791,-500.0,0.00019772,2]
[347918581,1736200247800,-500.0,0.00019788,2]
[347918582,1736200247810,-151.0,0.000198,2]
[347918583,1736200247819,-306.0,0.00019808,2]
[347918584,1736200247829,-465.15530153,0.00019857,2]
[347918585,1736200247838,-25564.35033826,0.00019895,2]
[347918586,1736200247848,-808.94,0.00019899,3]
[347918587,1736200247857,-808.94,0.00019899,3]
[347918588,1736200247867,-808.94,0.00019899,3]
[347918589,1736200247876,-808.94,0.00019899,3]
[347918590,1736200247886,-809.12,0.00019899,3]
[347918591,1736200247896,-151.0,0.000199,2]